[Event "*** Titled Tuesday Blitz"]
[Site "Chess.com"]
[Date "2021.04.20"]
[Round "1"]
[White "Sanyura"]
[Black "chessbia"]
[Result "1-0"]
[WhiteElo "2616"]
[BlackElo "2315"]
[TimeControl "180+1"]
[EndTime "10:07:51 PDT"]
[Termination "Sanyura won on time"]

1. Nf3 {[%clk 0:02:55.1]} 1... d5 {[%clk 0:02:59.9]} 2. g3 {[%clk 0:02:55.3]}
2... g6 {[%clk 0:02:59.6]} 3. Bg2 {[%clk 0:02:55.5]} 3... Bg7 {[%clk 0:02:59.8]}
4. c4 {[%clk 0:02:55]} 4... dxc4 {[%clk 0:02:59.6]} 5. O-O {[%clk 0:02:54.7]}
5... e5 {[%clk 0:02:57.8]} 6. Qa4+ {[%clk 0:02:35.6]} 6... Nc6 {[%clk
0:02:56.5]} 7. Nc3 {[%clk 0:02:14.3]} 7... Ne7 {[%clk 0:02:52.8]} 8. Qxc4 {[%clk
0:02:10.7]} 8... O-O {[%clk 0:02:49.6]} 9. d3 {[%clk 0:02:07.9]} 9... Be6 {[%clk
0:02:37.5]} 10. Qb5 {[%clk 0:01:55.6]} 10... Rb8 {[%clk 0:02:35.5]} 11. Ng5
{[%clk 0:01:52.7]} 11... Bd7 {[%clk 0:02:27.9]} 12. Nge4 {[%clk 0:01:48.3]}
12... Nd4 {[%clk 0:01:56.5]} 13. Qa5 {[%clk 0:01:10]} 13... Nec6 {[%clk
0:01:52.3]} 14. Qc5 {[%clk 0:01:07.8]} 14... b6 {[%clk 0:01:42.6]} 15. Qd5
{[%clk 0:01:06.6]} 15... Nb4 {[%clk 0:01:33.8]} 16. Qc4 {[%clk 0:01:02.4]} 16...
Nbc2 {[%clk 0:01:16.2]} 17. Bg5 {[%clk 0:00:47.7]} 17... Qc8 {[%clk 0:00:57.5]}
18. Nd5 {[%clk 0:00:21.4]} 18... Be6 {[%clk 0:00:15.7]} 19. Nef6+ {[%clk
0:00:12.6]} 19... Kh8 {[%clk 0:00:14.9]} 20. Rac1 {[%clk 0:00:10.8]} 20... Nxe2+
{[%clk 0:00:13.3]} 21. Kh1 {[%clk 0:00:10.5]} 21... Nxc1 {[%clk 0:00:13.8]} 22.
Qxc2 {[%clk 0:00:09.9]} 22... Nxa2 {[%clk 0:00:11.9]} 23. Qd2 {[%clk 0:00:10.3]}
23... c5 {[%clk 0:00:09.6]} 24. Bh6 {[%clk 0:00:10.1]} 24... Nb4 {[%clk
0:00:09]} 25. Nh5 {[%clk 0:00:06.1]} 25... Rg8 {[%clk 0:00:06.1]} 26. Bxg7+
{[%clk 0:00:04.4]} 26... Rxg7 {[%clk 0:00:07]} 27. Nxg7 {[%clk 0:00:03.2]} 27...
Kxg7 {[%clk 0:00:06.2]} 28. Nxb4 {[%clk 0:00:02.3]} 28... cxb4 {[%clk 0:00:06]}
29. Qxb4 {[%clk 0:00:03]} 29... Qd8 {[%clk 0:00:05.2]} 30. Qe4 {[%clk
0:00:03.3]} 30... Qd4 {[%clk 0:00:04.8]} 31. Qc6 {[%clk 0:00:02.7]} 31... a5
{[%clk 0:00:03.1]} 32. h4 {[%clk 0:00:03.3]} 32... h5 {[%clk 0:00:02.6]} 33. Qc7
{[%clk 0:00:03.9]} 33... Rd8 {[%clk 0:00:01.8]} 34. Qb7 {[%clk 0:00:03]} 34...
Rd7 {[%clk 0:00:02.1]} 35. Qf3 {[%clk 0:00:03.1]} 35... Bd5 {[%clk 0:00:02]} 36.
Qe2 {[%clk 0:00:02.9]} 36... Bxg2+ {[%clk 0:00:02.9]} 37. Kxg2 {[%clk
0:00:03.8]} 37... Rd6 {[%clk 0:00:02.3]} 38. Kg1 {[%clk 0:00:04.2]} 38... f6
{[%clk 0:00:02.4]} 39. Re1 {[%clk 0:00:04.7]} 39... b5 {[%clk 0:00:02.8]} 40.
Rd1 {[%clk 0:00:04.7]} 40... b4 {[%clk 0:00:03.6]} 41. Rc1 {[%clk 0:00:04.8]}
41... g5 {[%clk 0:00:04.1]} 42. hxg5 {[%clk 0:00:04.7]} 42... fxg5 {[%clk
0:00:05]} 43. Qxh5 {[%clk 0:00:05.1]} 43... Kf6 {[%clk 0:00:05.2]} 44. Qh6+
{[%clk 0:00:05]} 44... Kf5 {[%clk 0:00:04.4]} 45. Qh7+ {[%clk 0:00:05.5]} 45...
Kg4 {[%clk 0:00:03.7]} 46. Rc4 {[%clk 0:00:05.5]} 1-0

[Event "*** Titled Tuesday Blitz"]
[Site "Chess.com"]
[Date "2021.04.20"]
[Round "1"]
[White "SchmakAttack"]
[Black "AniJak"]
[Result "1-0"]
[WhiteElo "2600"]
[BlackElo "2288"]
[TimeControl "180+1"]
[EndTime "10:07:51 PDT"]
[Termination "SchmakAttack won on time"]

1. Nf3 {[%clk 0:02:58.8]} 1... d5 {[%clk 0:02:58.8]} 2. g3 {[%clk 0:02:58.5]}
2... Nf6 {[%clk 0:02:57.9]} 3. Bg2 {[%clk 0:02:58.6]} 3... g6 {[%clk 0:02:57.2]}
4. b3 {[%clk 0:02:57.1]} 4... Bg7 {[%clk 0:02:57.4]} 5. Bb2 {[%clk 0:02:57.7]}
5... O-O {[%clk 0:02:57.5]} 6. O-O {[%clk 0:02:58.3]} 6... c5 {[%clk 0:02:55.7]}
7. e3 {[%clk 0:02:58.5]} 7... Nc6 {[%clk 0:02:55.1]} 8. Ne5 {[%clk 0:02:58.5]}
8... Qc7 {[%clk 0:02:49.7]} 9. Nxc6 {[%clk 0:02:57.8]} 9... bxc6 {[%clk
0:02:45.1]} 10. d3 {[%clk 0:02:38]} 10... e5 {[%clk 0:02:38.9]} 11. Nd2 {[%clk
0:02:38.1]} 11... Ba6 {[%clk 0:02:30.3]} 12. c4 {[%clk 0:02:33.3]} 12... Rad8
{[%clk 0:02:29.2]} 13. Qc2 {[%clk 0:02:30.4]} 13... Rfe8 {[%clk 0:02:22.4]} 14.
Rfe1 {[%clk 0:02:06.4]} 14... Qb6 {[%clk 0:02:16.3]} 15. Rac1 {[%clk 0:02:03.5]}
15... Rc8 {[%clk 0:02:13.5]} 16. Nf3 {[%clk 0:01:49.7]} 16... Nd7 {[%clk
0:02:03.1]} 17. Nh4 {[%clk 0:01:19.9]} 17... Bb7 {[%clk 0:01:48.1]} 18. e4
{[%clk 0:01:17.5]} 18... d4 {[%clk 0:01:02.4]} 19. Rf1 {[%clk 0:01:17.7]} 19...
Rcd8 {[%clk 0:00:58.6]} 20. f4 {[%clk 0:01:13.6]} 20... exf4 {[%clk 0:00:58.2]}
21. gxf4 {[%clk 0:01:14.5]} 21... Bc8 {[%clk 0:00:43]} 22. Rce1 {[%clk
0:00:52.2]} 22... Qc7 {[%clk 0:00:42.3]} 23. Bc1 {[%clk 0:00:51.8]} 23... Nf8
{[%clk 0:00:33.1]} 24. f5 {[%clk 0:00:43]} 24... Qe7 {[%clk 0:00:33.3]} 25. Qf2
{[%clk 0:00:41.9]} 25... Nd7 {[%clk 0:00:26.3]} 26. Qg3 {[%clk 0:00:38.5]} 26...
Ne5 {[%clk 0:00:20.2]} 27. Rd1 {[%clk 0:00:19.9]} 27... Bf6 {[%clk 0:00:17.6]}
28. Nf3 {[%clk 0:00:20]} 28... Nxf3+ {[%clk 0:00:16.9]} 29. Bxf3 {[%clk
0:00:18.8]} 29... Be5 {[%clk 0:00:16.8]} 30. Qg2 {[%clk 0:00:18.1]} 30... Bg7
{[%clk 0:00:16.1]} 31. Bg5 {[%clk 0:00:17.2]} 31... f6 {[%clk 0:00:13.4]} 32.
Bd2 {[%clk 0:00:16.2]} 32... g5 {[%clk 0:00:13.6]} 33. Kh1 {[%clk 0:00:15.7]}
33... Rf8 {[%clk 0:00:13.3]} 34. Rg1 {[%clk 0:00:13.9]} 34... Bd7 {[%clk
0:00:13.3]} 35. h4 {[%clk 0:00:14]} 35... h6 {[%clk 0:00:12.7]} 36. Rde1 {[%clk
0:00:06.7]} 36... Kh7 {[%clk 0:00:12.7]} 37. Qh3 {[%clk 0:00:06.7]} 37... Qe5
{[%clk 0:00:11.6]} 38. hxg5 {[%clk 0:00:05.4]} 38... fxg5 {[%clk 0:00:11.9]} 39.
Bxg5 {[%clk 0:00:05.5]} 39... Rde8 {[%clk 0:00:12]} 40. Re2 {[%clk 0:00:03.7]}
40... Qd6 {[%clk 0:00:08.1]} 41. Reg2 {[%clk 0:00:03.2]} 41... Re7 {[%clk
0:00:01.9]} 42. Bxe7 {[%clk 0:00:03.1]} 42... Qxe7 {[%clk 0:00:01.8]} 43. Rxg7+
{[%clk 0:00:03.7]} 1-0

[Event "*** Titled Tuesday Blitz"]
[Site "Chess.com"]
[Date "2021.04.20"]
[Round "1"]
[White "politeplayer"]
[Black "deribas12345"]
[Result "1-0"]
[WhiteElo "2232"]
[BlackElo "2524"]
[TimeControl "180+1"]
[EndTime "10:07:52 PDT"]
[Termination "politeplayer won by resignation"]

1. e4 {[%clk 0:03:00.9]} 1... c5 {[%clk 0:02:58.6]} 2. Nf3 {[%clk 0:03:00.1]}
2... d6 {[%clk 0:02:58.4]} 3. d4 {[%clk 0:03:00.2]} 3... cxd4 {[%clk 0:02:58.9]}
4. Nxd4 {[%clk 0:03:00.8]} 4... Nf6 {[%clk 0:02:57.8]} 5. Nc3 {[%clk 0:03:01.4]}
5... a6 {[%clk 0:02:57.3]} 6. Bc4 {[%clk 0:03:01.9]} 6... e6 {[%clk 0:02:56.5]}
7. a4 {[%clk 0:03:02.3]} 7... Be7 {[%clk 0:02:55.2]} 8. O-O {[%clk 0:03:02.1]}
8... O-O {[%clk 0:02:55]} 9. Ba2 {[%clk 0:03:02.6]} 9... Nbd7 {[%clk 0:02:53]}
10. Bxe6 {[%clk 0:02:50.5]} 10... fxe6 {[%clk 0:02:50.2]} 11. Nxe6 {[%clk
0:02:49.8]} 11... Qa5 {[%clk 0:02:49.1]} 12. Bd2 {[%clk 0:02:24.3]} 12... Qe5
{[%clk 0:02:34.9]} 13. Nxf8 {[%clk 0:02:11.4]} 13... Nxf8 {[%clk 0:02:33.6]} 14.
f3 {[%clk 0:02:02.5]} 14... Ng6 {[%clk 0:02:25.3]} 15. Be3 {[%clk 0:01:59]}
15... Bd7 {[%clk 0:02:17.1]} 16. Bd4 {[%clk 0:01:53.4]} 16... Qe6 {[%clk
0:02:07.8]} 17. Bxf6 {[%clk 0:01:48.4]} 17... Bxf6 {[%clk 0:02:04.7]} 18. Nd5
{[%clk 0:01:48.6]} 18... Rf8 {[%clk 0:01:59.4]} 19. Nxf6+ {[%clk 0:01:44]} 19...
Rxf6 {[%clk 0:01:55]} 20. c3 {[%clk 0:01:34.6]} 20... Nf4 {[%clk 0:01:40.6]} 21.
Qd2 {[%clk 0:01:21.6]} 21... Qe5 {[%clk 0:01:31.2]} 22. g3 {[%clk 0:01:08.9]}
22... Rg6 {[%clk 0:01:21.6]} 23. Kh1 {[%clk 0:01:00.2]} 23... Nh5 {[%clk
0:01:19.1]} 24. Qd5+ {[%clk 0:00:53.3]} 24... Qxd5 {[%clk 0:01:17.9]} 25. exd5
{[%clk 0:00:52.9]} 25... Nf6 {[%clk 0:01:18.8]} 26. c4 {[%clk 0:00:48.6]} 26...
Rg5 {[%clk 0:01:18.4]} 27. Rfe1 {[%clk 0:00:44.6]} 27... Kf7 {[%clk 0:01:17.8]}
28. Re3 {[%clk 0:00:41.9]} 28... h5 {[%clk 0:00:51]} 29. Rae1 {[%clk 0:00:41.3]}
29... Ng8 {[%clk 0:00:51.1]} 30. Rb3 {[%clk 0:00:38.2]} 30... Bc8 {[%clk
0:00:49.8]} 31. a5 {[%clk 0:00:35.9]} 31... Rf5 {[%clk 0:00:46.2]} 32. Kg2
{[%clk 0:00:33.6]} 32... h4 {[%clk 0:00:46.1]} 33. Rb6 {[%clk 0:00:32]} 33...
Rf6 {[%clk 0:00:44.7]} 34. g4 {[%clk 0:00:29.7]} 34... h3+ {[%clk 0:00:43.2]}
35. Kg3 {[%clk 0:00:28.6]} 35... g5 {[%clk 0:00:43.5]} 36. c5 {[%clk 0:00:25]}
36... dxc5 {[%clk 0:00:42.8]} 37. Rxf6+ {[%clk 0:00:24.3]} 37... Nxf6 {[%clk
0:00:43.7]} 38. d6 {[%clk 0:00:22.4]} 38... Nd5 {[%clk 0:00:40.1]} 39. Kxh3
{[%clk 0:00:19]} 39... Be6 {[%clk 0:00:36.7]} 40. Kg3 {[%clk 0:00:17.6]} 40...
Nf4 {[%clk 0:00:36.2]} 41. h4 {[%clk 0:00:16.2]} 41... Nd3 {[%clk 0:00:32.8]}
42. Rd1 {[%clk 0:00:15]} 42... Nxb2 {[%clk 0:00:32.3]} 43. d7 {[%clk 0:00:14.1]}
43... Bxd7 {[%clk 0:00:28.3]} 44. Rxd7+ {[%clk 0:00:13.9]} 44... Ke6 {[%clk
0:00:29.2]} 45. Rxb7 {[%clk 0:00:13.6]} 45... Nc4 {[%clk 0:00:29.8]} 46. Rc7
{[%clk 0:00:12.7]} 46... gxh4+ {[%clk 0:00:29]} 47. Kxh4 {[%clk 0:00:12.7]}
47... Kd6 {[%clk 0:00:27.5]} 48. Rc8 {[%clk 0:00:12.6]} 48... Ne5 {[%clk
0:00:27.3]} 49. Kg3 {[%clk 0:00:09.9]} 49... c4 {[%clk 0:00:27]} 50. g5 {[%clk
0:00:08.8]} 50... Nc6 {[%clk 0:00:21.2]} 51. g6 {[%clk 0:00:08.1]} 51... c3
{[%clk 0:00:21.7]} 52. g7 {[%clk 0:00:07.1]} 52... c2 {[%clk 0:00:22.1]} 53.
Rxc6+ {[%clk 0:00:07.2]} 53... Kxc6 {[%clk 0:00:20.7]} 54. g8=Q {[%clk
0:00:07.3]} 54... c1=Q {[%clk 0:00:21.6]} 55. Qc8+ {[%clk 0:00:07.3]} 1-0

[Event "*** Titled Tuesday Blitz"]
[Site "Chess.com"]
[Date "2021.04.20"]
[Round "1"]
[White "gumimis"]
[Black "Grandmaster1369"]
[Result "0-1"]
[WhiteElo "2320"]
[BlackElo "2623"]
[TimeControl "180+1"]
[EndTime "10:07:54 PDT"]
[Termination "Grandmaster1369 won by resignation"]

1. e4 {[%clk 0:02:53.6]} 1... c5 {[%clk 0:02:59.4]} 2. Nf3 {[%clk 0:02:51.9]}
2... d6 {[%clk 0:02:59.7]} 3. d4 {[%clk 0:02:48.9]} 3... cxd4 {[%clk 0:03:00.6]}
4. Nxd4 {[%clk 0:02:46.1]} 4... Nf6 {[%clk 0:02:59.4]} 5. Nc3 {[%clk 0:02:42.2]}
5... a6 {[%clk 0:02:58.4]} 6. Bg5 {[%clk 0:02:37.1]} 6... Nbd7 {[%clk
0:02:55.5]} 7. a4 {[%clk 0:02:33.1]} 7... h6 {[%clk 0:02:50.3]} 8. Bh4 {[%clk
0:02:31.9]} 8... Qb6 {[%clk 0:02:44.7]} 9. a5 {[%clk 0:02:17.6]} 9... Qc7 {[%clk
0:02:33.1]} 10. Nb3 {[%clk 0:02:15.9]} 10... e6 {[%clk 0:02:30.3]} 11. Be2
{[%clk 0:02:14.5]} 11... Be7 {[%clk 0:02:30.6]} 12. O-O {[%clk 0:02:12.9]} 12...
O-O {[%clk 0:02:31.2]} 13. Bg3 {[%clk 0:02:09.8]} 13... Rd8 {[%clk 0:02:29.1]}
14. f4 {[%clk 0:02:08.3]} 14... Nc5 {[%clk 0:02:11]} 15. Nxc5 {[%clk 0:02:05.3]}
15... dxc5 {[%clk 0:02:11.1]} 16. Qe1 {[%clk 0:02:05.4]} 16... Bd7 {[%clk
0:02:10.8]} 17. Bf3 {[%clk 0:02:04.9]} 17... Bc6 {[%clk 0:02:09.7]} 18. f5
{[%clk 0:02:00.8]} 18... e5 {[%clk 0:02:09.2]} 19. Qe3 {[%clk 0:01:56.7]} 19...
Rd4 {[%clk 0:02:06.4]} 20. Ne2 {[%clk 0:01:54.6]} 20... Rb4 {[%clk 0:02:00.5]}
21. Qc3 {[%clk 0:01:40.6]} 21... Nxe4 {[%clk 0:01:55.4]} 22. Bxe5 {[%clk
0:01:21.2]} 22... Nxc3 {[%clk 0:01:52.1]} 23. Bxc7 {[%clk 0:01:21.4]} 23...
Nxe2+ {[%clk 0:01:52.6]} 24. Bxe2 {[%clk 0:01:20.8]} 24... Rxb2 {[%clk
0:01:53.3]} 25. Bd3 {[%clk 0:01:12.6]} 25... Bf6 {[%clk 0:01:52.2]} 26. Rab1
{[%clk 0:01:04.6]} 26... Ra2 {[%clk 0:01:48.6]} 27. Rfe1 {[%clk 0:00:55.6]}
27... c4 {[%clk 0:01:43.6]} 28. Bxc4 {[%clk 0:00:54.9]} 28... Rxc2 {[%clk
0:01:43.9]} 29. Bf1 {[%clk 0:00:54]} 29... Bc3 {[%clk 0:01:08.9]} 30. Re7 {[%clk
0:00:46.8]} 30... Bd4+ {[%clk 0:00:58.4]} 31. Kh1 {[%clk 0:00:46.1]} 31... Bc5
{[%clk 0:00:59.1]} 32. Re5 {[%clk 0:00:43.5]} 32... Rc8 {[%clk 0:00:57.1]} 33.
Bb6 {[%clk 0:00:42.2]} 33... Bxb6 {[%clk 0:00:56.3]} 34. axb6 {[%clk 0:00:40.3]}
34... a5 {[%clk 0:00:33.2]} 35. Rxa5 {[%clk 0:00:32.6]} 35... Bxg2+ {[%clk
0:00:32.5]} 36. Bxg2 {[%clk 0:00:32.3]} 36... Rc1+ {[%clk 0:00:32.9]} 37. Rxc1
{[%clk 0:00:32.9]} 37... Rxc1+ {[%clk 0:00:33.6]} 38. Bf1 {[%clk 0:00:33.8]}
38... Rxf1+ {[%clk 0:00:34.3]} 39. Kg2 {[%clk 0:00:34]} 39... Rb1 {[%clk
0:00:35.2]} 40. Ra8+ {[%clk 0:00:32.4]} 40... Kh7 {[%clk 0:00:35.5]} 41. Rf8
{[%clk 0:00:32.9]} 41... f6 {[%clk 0:00:34.5]} 42. Rb8 {[%clk 0:00:31.3]} 42...
Rxb6 {[%clk 0:00:35.2]} 43. Kf3 {[%clk 0:00:31.2]} 43... Rb4 {[%clk 0:00:35.6]}
44. Ke3 {[%clk 0:00:28.7]} 44... h5 {[%clk 0:00:36.1]} 45. Kf3 {[%clk
0:00:25.4]} 45... b5 {[%clk 0:00:34.8]} 46. Kg3 {[%clk 0:00:20.2]} 46... g5
{[%clk 0:00:22.2]} 47. fxg6+ {[%clk 0:00:17.4]} 47... Kxg6 {[%clk 0:00:23]} 48.
h4 {[%clk 0:00:17.1]} 48... Kf5 {[%clk 0:00:22.4]} 49. Rh8 {[%clk 0:00:17.5]}
49... Rb3+ {[%clk 0:00:21.6]} 50. Kf2 {[%clk 0:00:16.8]} 50... Kg4 {[%clk
0:00:22.3]} 51. Rf8 {[%clk 0:00:17.1]} 51... Rf3+ {[%clk 0:00:21.9]} 52. Kg2
{[%clk 0:00:16.2]} 52... Rf5 {[%clk 0:00:22.8]} 0-1

[Event "*** Titled Tuesday Blitz"]
[Site "Chess.com"]
[Date "2021.04.20"]
[Round "1"]
[White "Das_Virus_2020"]
[Black "MVM2008"]
[Result "0-1"]
[WhiteElo "2491"]
[BlackElo "2154"]
[TimeControl "180+1"]
[EndTime "10:07:55 PDT"]
[Termination "MVM2008 won on time"]

1. e4 {[%clk 0:02:56.8]} 1... c5 {[%clk 0:02:56.8]} 2. c3 {[%clk 0:02:56.4]}
2... d6 {[%clk 0:02:49.3]} 3. d4 {[%clk 0:02:56.1]} 3... Nd7 {[%clk 0:02:49.9]}
4. Bd3 {[%clk 0:02:55]} 4... g6 {[%clk 0:02:48.9]} 5. f3 {[%clk 0:02:54.3]} 5...
Bg7 {[%clk 0:02:46.8]} 6. Ne2 {[%clk 0:02:54.5]} 6... e5 {[%clk 0:02:42.9]} 7.
Be3 {[%clk 0:02:50.9]} 7... Ne7 {[%clk 0:02:39.4]} 8. O-O {[%clk 0:02:49.7]}
8... O-O {[%clk 0:02:37.3]} 9. Na3 {[%clk 0:02:34.7]} 9... a6 {[%clk 0:02:15.3]}
10. Nc4 {[%clk 0:02:12.5]} 10... Qc7 {[%clk 0:01:48.4]} 11. a4 {[%clk
0:02:03.6]} 11... d5 {[%clk 0:01:33]} 12. Nxe5 {[%clk 0:01:59.1]} 12... Nxe5
{[%clk 0:01:31.2]} 13. dxe5 {[%clk 0:01:59]} 13... Bxe5 {[%clk 0:01:25.5]} 14.
f4 {[%clk 0:01:43.6]} 14... dxe4 {[%clk 0:01:20]} 15. Bxe4 {[%clk 0:01:22.6]}
15... Bg7 {[%clk 0:01:18.4]} 16. Ng3 {[%clk 0:01:19]} 16... f5 {[%clk
0:01:14.4]} 17. Bf3 {[%clk 0:01:11.7]} 17... Be6 {[%clk 0:01:11.7]} 18. Re1
{[%clk 0:01:08.4]} 18... Rad8 {[%clk 0:01:07]} 19. Qc2 {[%clk 0:01:07.8]} 19...
Nd5 {[%clk 0:00:48.9]} 20. Bf2 {[%clk 0:00:42.2]} 20... Nxf4 {[%clk 0:00:38.2]}
21. Rad1 {[%clk 0:00:33.1]} 21... Rxd1 {[%clk 0:00:24.2]} 22. Rxd1 {[%clk
0:00:31.1]} 22... Bf7 {[%clk 0:00:19.4]} 23. Ne2 {[%clk 0:00:25.5]} 23... Nxe2+
{[%clk 0:00:19.4]} 24. Qxe2 {[%clk 0:00:24]} 24... Re8 {[%clk 0:00:19.4]} 25.
Qc2 {[%clk 0:00:23.8]} 25... b5 {[%clk 0:00:15.3]} 26. axb5 {[%clk 0:00:22.2]}
26... axb5 {[%clk 0:00:16.2]} 27. h3 {[%clk 0:00:21.3]} 27... Be5 {[%clk
0:00:15.2]} 28. Re1 {[%clk 0:00:17.2]} 28... Bh2+ {[%clk 0:00:14.7]} 29. Kh1
{[%clk 0:00:16.9]} 29... Rxe1+ {[%clk 0:00:15.6]} 30. Bxe1 {[%clk 0:00:17.4]}
30... Bg3 {[%clk 0:00:15.1]} 31. Qe2 {[%clk 0:00:16.5]} 31... Bxe1 {[%clk
0:00:11.2]} 32. Qxe1 {[%clk 0:00:17.4]} 32... Qd7 {[%clk 0:00:09.7]} 33. Qe2
{[%clk 0:00:17.1]} 33... Bc4 {[%clk 0:00:08.7]} 34. Qe5 {[%clk 0:00:16.2]} 34...
Qe6 {[%clk 0:00:03]} 35. Qxc5 {[%clk 0:00:14.1]} 35... Kg7 {[%clk 0:00:03.6]}
36. Qd4+ {[%clk 0:00:13.2]} 36... Qf6 {[%clk 0:00:03.9]} 37. Qd7+ {[%clk
0:00:10.9]} 37... Qf7 {[%clk 0:00:04.2]} 38. Qd6 {[%clk 0:00:09.5]} 38... Qf6
{[%clk 0:00:04.2]} 39. Qc7+ {[%clk 0:00:08.8]} 39... Qf7 {[%clk 0:00:04.5]} 40.
Qc5 {[%clk 0:00:08.4]} 40... Qe8 {[%clk 0:00:04.3]} 41. Qd4+ {[%clk 0:00:07.4]}
41... Kg8 {[%clk 0:00:02.9]} 42. Bd5+ {[%clk 0:00:07]} 42... Kf8 {[%clk
0:00:02.2]} 43. Bxc4 {[%clk 0:00:06.2]} 43... bxc4 {[%clk 0:00:02.1]} 44. Qc5+
{[%clk 0:00:05.3]} 44... Qe7 {[%clk 0:00:02]} 45. Qxc4 {[%clk 0:00:02.8]} 45...
Qe1+ {[%clk 0:00:02.1]} 46. Kh2 {[%clk 0:00:02.8]} 46... Qe5+ {[%clk 0:00:03]}
47. g3 {[%clk 0:00:02.9]} 47... Qe3 {[%clk 0:00:03]} 0-1

[Event "*** Titled Tuesday Blitz"]
[Site "Chess.com"]
[Date "2021.04.20"]
[Round "1"]
[White "Valeron87"]
[Black "frederiksvane"]
[Result "0-1"]
[WhiteElo "2408"]
[BlackElo "2739"]
[TimeControl "180+1"]
[EndTime "10:08:00 PDT"]
[Termination "frederiksvane won by checkmate"]

1. e4 {[%clk 0:02:55.2]} 1... c5 {[%clk 0:02:58.7]} 2. Nf3 {[%clk 0:02:53.6]}
2... g6 {[%clk 0:02:56.6]} 3. d4 {[%clk 0:02:53.7]} 3... cxd4 {[%clk 0:02:57.5]}
4. Nxd4 {[%clk 0:02:53.7]} 4... Nc6 {[%clk 0:02:56.1]} 5. c4 {[%clk 0:02:54.2]}
5... Nf6 {[%clk 0:02:55.9]} 6. Nc3 {[%clk 0:02:54]} 6... Nxd4 {[%clk 0:02:56.3]}
7. Qxd4 {[%clk 0:02:53]} 7... d6 {[%clk 0:02:56.4]} 8. Be2 {[%clk 0:02:49.2]}
8... Bg7 {[%clk 0:02:56.3]} 9. O-O {[%clk 0:02:43.9]} 9... O-O {[%clk
0:02:55.7]} 10. Qd3 {[%clk 0:02:43.9]} 10... Nd7 {[%clk 0:02:50.8]} 11. f4
{[%clk 0:02:42.8]} 11... Nc5 {[%clk 0:02:50.6]} 12. Qe3 {[%clk 0:02:32.1]} 12...
Ne6 {[%clk 0:02:43.2]} 13. Kh1 {[%clk 0:02:29.2]} 13... Nd4 {[%clk 0:02:33.8]}
14. Bd3 {[%clk 0:02:26.9]} 14... e6 {[%clk 0:02:25.9]} 15. Bd2 {[%clk
0:02:17.9]} 15... b6 {[%clk 0:02:15.1]} 16. Rae1 {[%clk 0:02:16.4]} 16... Bb7
{[%clk 0:02:03.9]} 17. b3 {[%clk 0:02:13.2]} 17... Qd7 {[%clk 0:02:00]} 18. Bb1
{[%clk 0:02:10.1]} 18... Rae8 {[%clk 0:01:59.2]} 19. Bc1 {[%clk 0:01:58.9]}
19... b5 {[%clk 0:01:25.5]} 20. Rd1 {[%clk 0:01:37.6]} 20... e5 {[%clk
0:01:20.6]} 21. cxb5 {[%clk 0:01:27.5]} 21... exf4 {[%clk 0:00:48.4]} 22. Rxf4
{[%clk 0:01:25.4]} 22... Nxb5 {[%clk 0:00:45.7]} 23. Nxb5 {[%clk 0:01:17]} 23...
Qxb5 {[%clk 0:00:46.6]} 24. Qxa7 {[%clk 0:01:03.1]} 24... d5 {[%clk 0:00:20.7]}
25. Bd3 {[%clk 0:00:53.4]} 25... Qc6 {[%clk 0:00:16.7]} 26. exd5 {[%clk
0:00:46.2]} 26... Qxd5 {[%clk 0:00:17.1]} 27. Qf2 {[%clk 0:00:46.2]} 27... Be5
{[%clk 0:00:10.4]} 28. Rh4 {[%clk 0:00:39.8]} 28... Rd8 {[%clk 0:00:08]} 29. Bg5
{[%clk 0:00:36.1]} 29... Bd4 {[%clk 0:00:05.1]} 30. Qf1 {[%clk 0:00:30.4]} 30...
Qxg5 {[%clk 0:00:04.6]} 31. Rh3 {[%clk 0:00:24]} 31... Bg7 {[%clk 0:00:04.9]}
32. Rg3 {[%clk 0:00:23.3]} 32... Qe5 {[%clk 0:00:05.1]} 33. Bc4 {[%clk
0:00:20.5]} 33... Rxd1 {[%clk 0:00:04.7]} 34. Qxd1 {[%clk 0:00:21.4]} 34... h5
{[%clk 0:00:04.4]} 35. a4 {[%clk 0:00:19.8]} 35... h4 {[%clk 0:00:03.8]} 36. Rg4
{[%clk 0:00:19]} 36... Re8 {[%clk 0:00:04]} 37. Qf1 {[%clk 0:00:11.3]} 37... Qf5
{[%clk 0:00:04.3]} 38. Rf4 {[%clk 0:00:10.7]} 38... Qe5 {[%clk 0:00:02.2]} 39.
Bxf7+ {[%clk 0:00:10.3]} 39... Kh7 {[%clk 0:00:02.6]} 40. Bxe8 {[%clk
0:00:10.8]} 40... Qxe8 {[%clk 0:00:02.7]} 41. Rxh4+ {[%clk 0:00:11.3]} 41... Bh6
{[%clk 0:00:03.1]} 42. h3 {[%clk 0:00:10.5]} 42... g5 {[%clk 0:00:03]} 43. Rc4
{[%clk 0:00:09.4]} 43... Bd5 {[%clk 0:00:02.6]} 44. Rc7+ {[%clk 0:00:09.2]}
44... Kg6 {[%clk 0:00:03]} 45. Qb1+ {[%clk 0:00:08.3]} 45... Be4 {[%clk
0:00:02.6]} 46. Rc6+ {[%clk 0:00:08.1]} 46... Kg7 {[%clk 0:00:02]} 47. Rc7+
{[%clk 0:00:07.9]} 47... Kg6 {[%clk 0:00:02.3]} 48. Qc1 {[%clk 0:00:07.8]} 48...
Qe5 {[%clk 0:00:02.1]} 49. b4 {[%clk 0:00:05.9]} 49... Qg3 {[%clk 0:00:02]} 50.
Rd7 {[%clk 0:00:04.6]} 50... Qxh3+ {[%clk 0:00:02]} 51. Kg1 {[%clk 0:00:02.6]}
51... Qxg2# {[%clk 0:00:02.9]} 0-1